fUST/lending_fUST_20240811
["ID","MTS","AMOUNT","RATE_DAILY","PERIOD"]
[334624394,1723360239503,-250.0,0.00017009,2]
[334624395,1723360239515,-250.0,0.00017054,2]
[334624396,1723360239527,-420.0,0.00017067,2]
[334624397,1723360239539,-250.0,0.00017099,2]
[334624398,1723360239549,-250.0,0.00017145,2]
[334624399,1723360239560,-250.0,0.0001719,2]
[334624400,1723360239571,-250.0,0.00017235,2]
[334624401,1723360239582,-250.0,0.0001728,2]
[334624402,1723360239593,-250.0,0.00017325,2]
[334624403,1723360239606,-150.112233,0.000177,2]
[334624404,1723360239616,-504.07842833,0.00018193,2]
[334624405,1723360239628,-150.112233,0.000184,2]
[334624406,1723360239640,-5316.29352786,0.00018459,2]
[334624407,1723360239651,-500.0,0.00018559,2]
[334624408,1723360239662,-500.0,0.00018559,2]
[334624409,1723360239674,-500.0,0.00018559,2]
[334624410,1723360239685,-500.0,0.00018559,2]
[334624411,1723360239696,-433.00472511,0.00018559,2]
[334624412,1723360239709,-500.0,0.00018559,2]
[334624413,1723360239723,-500.0,0.00018559,2]
[334624414,1723360239736,-562.98096632,0.00018559,2]
[334624415,1723360239748,-89992.5915918,0.0001856,2]
[334624416,1723360239762,-587.0,0.00018565,2]
[334624417,1723360239775,-88888.0,0.0001857,2]
[334624418,1723360239787,-952.621668,0.00018773,2]
[334624419,1723360239799,-157.85964427,0.00018773,2]
[334624420,1723360239812,-587.0,0.00018774,2]
[334624421,1723360239824,-1592.54311925,0.00018804,2]
[334624422,1723360239837,-168.23380832,0.00018858,2]
[334624423,1723360239851,-368.5685614,0.00018858,2]
[334624424,1723360239862,-500.0,0.00018858,2]
[334624425,1723360239873,-500.0,0.00018858,2]
[334624426,1723360239885,-359970.366367,0.0001886,2]
[334624427,1723360239896,-200.0,0.00018873,2]
[334624428,1723360239907,-247843.55704119,0.0001888,2]
[334624451,1723360240967,-494.6780177,0.00016095,2]
[334624452,1723360240976,-255093.1865179,0.0001888,2]
[334624453,1723360240987,-307.536245,0.00018904,2]
[334624454,1723360240998,-14251.4449406,0.00018999,2]
[334624455,1723360241009,-42377.77535747,0.00018999,2]
[334624456,1723360241020,-301.08770974,0.00018999,2]
[334624457,1723360241032,-151.0,0.00019079,2]
[334624458,1723360241043,-309.350365,0.00019153,2]
[334624459,1723360241052,-8836.92013464,0.00019167,2]
[334624460,1723360241062,-26242.91725584,0.00019167,2]
[334624503,1723360246889,-154.76012181,0.00016038,2]
[334624505,1723360246899,-582.1106816,0.00019167,2]
[334624510,1723360366065,167.090335,0.00014247,2]
[334624540,1723360917535,170.301292,0.00014247,2]
[334624561,1723361100580,342.12,0.00010959,2]
[334624567,1723361203340,371.16,0.00010959,2]
[334624568,1723361213424,674.04074108,0.00013283,2]
[334624569,1723361226130,-7265.44212184,0.00015995,2]
[334624571,1723361238260,183.26546668,0.00013283,2]
[334624572,1723361241017,154.76784823,0.00013283,2]
[334624573,1723361243606,810.66153205,0.00013283,2]
[334624574,1723361254750,155.22337769,0.00013283,2]
[334624582,1723361372789,940.8613846,0.0001501,2]
[334624583,1723361372817,7772.5486154,0.0001501,2]
[334624584,1723361378763,167.090335,0.00014247,2]
[334624588,1723361411308,24900.0,0.00014874,2]
[334624644,1723361431894,-250.0,0.00015546,2]
[334624646,1723361431904,-250.0,0.00015589,2]
[334624648,1723361431914,-250.0,0.00015632,2]
[334624650,1723361431924,-250.0,0.00015674,2]
[334624652,1723361431933,-250.0,0.00015717,2]
[334624654,1723361431943,-250.0,0.0001576,2]
[334624656,1723361431952,-250.0,0.00015802,2]
[334624658,1723361431963,-250.0,0.00015845,2]
[334624660,1723361431972,-301.08770974,0.00015851,2]
[334624662,1723361431982,-293.54215785,0.00015851,2]
[334624663,1723361431996,-250.0,0.00015887,2]
[334624664,1723361432005,-250.0,0.0001593,2]
[334624665,1723361432014,-154.88378153,0.00015952,2]
[334624666,1723361432024,-250.0,0.00015973,2]
[334624667,1723361432033,-1190.31744566,0.00015995,2]
[334624668,1723361432043,-110.61077265,0.00016015,2]
[334624669,1723361432055,-139.38922735,0.00016015,2]
[334624670,1723361432064,-300.0,0.00016037,2]
[334624671,1723361432073,-300.0,0.00016037,2]
[334624672,1723361432083,-279.74053787,0.00016038,2]
[334624673,1723361432092,-16240.0701554,0.00016038,2]
[334624674,1723361432104,-730.34641442,0.00016038,2]
[334624704,1723361438200,-18070.03504517,0.00016038,2]
[334624705,1723361438211,-559.00369446,0.00016038,2]
[334624706,1723361438221,-810.66153205,0.00016038,2]
[334624707,1723361438231,-35040.45161499,0.00016038,2]
[334624708,1723361438241,-155.1708846,0.00016038,2]
[334624709,1723361438250,-250.0,0.00016058,2]
[334624710,1723361438260,-845.99366792,0.00016095,2]
[334624711,1723361438271,-154.78689557,0.00016095,2]
[334624712,1723361438281,-912.76636685,0.000161,2]
[334624713,1723361438291,-250.0,0.00016101,2]
[334624714,1723361438301,-7007.90701187,0.0001611,2]
[334624715,1723361438311,-4651.75683686,0.00016128,2]
[334624716,1723361438321,-250.0,0.00016143,2]
[334624717,1723361438332,-184.0245936,0.00016176,2]
[334624718,1723361438341,-250.0,0.00016186,2]
[334624719,1723361438350,-250.0,0.00016229,2]
[334624720,1723361438544,-250.0,0.00016271,2]
[334624721,1723361438556,-154.76012181,0.00016309,2]
[334624722,1723361438566,-250.0,0.00016314,2]
[334624723,1723361438576,-8836.92013464,0.00016347,2]
[334624724,1723361438586,-250.0,0.00016356,2]
[334624725,1723361438597,-340.33121848,0.00016438,2]
[334624726,1723361438606,-565.26114524,0.00017,2]
[334624727,1723361438615,-952.621668,0.00017379,2]
[334624728,1723361438625,-154.98751606,0.00017403,2]
[334624729,1723361438637,-957.91710981,0.0001753,2]
[334624730,1723361438647,-420.0,0.00017533,2]
[334624731,1723361438658,-274.07708089,0.00017555,2]
[334624732,1723361438669,-1989.40201653,0.000176,2]
[334624733,1723361438678,-420.0,0.00017641,2]
[334624734,1723361438687,-957.91710981,0.00017838,2]
[334624735,1723361438697,-175.97109674,0.0001784,2]
[334624736,1723361438708,-1000.0,0.00018,18]
[334624737,1723361438719,-4651.75683684,0.00018095,2]
[334624738,1723361438729,-70128.8264392,0.00018115,2]
[334624739,1723361438740,-957.91710981,0.00018147,2]
[334624740,1723361438754,-5240.178669,0.00018346,2]
[334624741,1723361438763,-1993.38782086,0.00018346,2]
[334624742,1723361438773,-2710.33053727,0.00018346,2]
[334624743,1723361438783,-3090.31067256,0.00018356,2]
[334624744,1723361438793,-1347.14362803,0.00018356,3]
[334624745,1723361438803,-1612.06535955,0.00018356,2]
[334624746,1723361438813,-1765.03360075,0.00018356,2]
[334624747,1723361438822,-957.91710981,0.00018455,2]
[334624748,1723361438832,-2164.45800918,0.00018489,2]
[334624749,1723361438841,-1364.59246336,0.00018489,2]
[334624750,1723361438851,-1163.86062826,0.00018489,2]
[334624751,1723361438861,-150.112233,0.000186,2]
[334624752,1723361438874,-2000.0,0.000186,2]
[334624753,1723361438883,-257.99799298,0.00018646,2]
[334624754,1723361438893,-500.0,0.00018646,2]
[334624755,1723361438902,-500.0,0.00018646,2]
[334624756,1723361438911,-500.0,0.00018646,2]
[334624757,1723361438922,-500.0,0.00018646,2]
[334624758,1723361438932,-500.0,0.00018646,2]
[334624759,1723361438942,-500.0,0.00018646,2]
[334624760,1723361438952,-500.0,0.00018646,2]
[334624761,1723361438961,-500.0,0.00018646,2]
[334624762,1723361438970,-500.0,0.00018646,2]
[334624763,1723361438982,-500.0,0.00018646,2]
[334624764,1723361438996,-500.0,0.00018646,2]
[334624765,1723361439008,-500.0,0.00018646,2]
[334624766,1723361439019,-500.0,0.00018646,2]
[334624767,1723361439028,-500.0,0.00018646,2]
[334624768,1723361439037,-500.0,0.00018646,2]
[334624769,1723361439048,-500.0,0.00018646,2]
[334624770,1723361439059,-500.0,0.00018646,2]
[334624771,1723361439071,-500.0,0.00018646,2]
[334624772,1723361439080,-500.0,0.00018646,2]
[334624773,1723361439090,-500.0,0.00018646,2]
[334624774,1723361439100,-500.0,0.00018646,2]
[334624775,1723361439111,-630.0431551,0.00018646,2]
[334624776,1723361439123,-500.0,0.00018646,2]
[334624777,1723361439133,-500.0,0.00018646,2]
[334624778,1723361439142,-500.0,0.00018646,2]
[334624779,1723361439152,-500.0,0.00018646,2]
[334624780,1723361439162,-650.0,0.00018646,2]
[334624781,1723361439172,-500.0,0.00018646,2]
[334624782,1723361439183,-70128.8264392,0.00018647,2]
[334624783,1723361439194,-5321.67920991,0.0001865,2]
[334624784,1723361439205,-1384.13048712,0.00018657,2]
[334624785,1723361439215,-1384.13048712,0.00018657,2]
[334624786,1723361439225,-1717.1638182,0.00018657,2]
[334624787,1723361439237,-2141.01768748,0.00018657,2]
[334624788,1723361439246,-277.43269753,0.00018679,2]
[334624789,1723361439255,-1500.0,0.00018696,2]
[334624790,1723361439264,-189.8862147,0.00018701,2]
[334624791,1723361439276,-850.13586547,0.0001872,2]
[334624792,1723361439287,-342.34390176,0.0001872,2]
[334624793,1723361439297,-932.99527997,0.0001872,2]
[334624794,1723361439308,-569.05372197,0.0001872,2]
[334624795,1723361439317,-160.25653991,0.0001872,2]
[334624796,1723361439329,-957.91710981,0.00018763,2]
[334624797,1723361439340,-510.0216815,0.00018786,2]
[334624798,1723361439350,-639.10429466,0.00018786,2]
[334624799,1723361439360,-174.67965412,0.00018786,2]
[334624800,1723361439369,-816.94684465,0.00018786,3]
[334624801,1723361439378,-601.3570708,0.00018786,2]
[334624802,1723361439387,-154.85284036,0.00018786,2]
[334624803,1723361439397,-694.71379029,0.00018786,2]
[334624804,1723361439406,-1916.09834101,0.00018798,2]
[334624805,1723361439416,-156.96173825,0.00018799,2]
[334624806,1723361439425,-329.49366951,0.00018799,2]
[334624807,1723361439434,-155.38583539,0.00018799,2]
[334624808,1723361439444,-241.01224895,0.00018799,2]
[334624809,1723361439453,-165.69067667,0.00018799,2]
[334624810,1723361439464,-154.76012181,0.00018799,2]
[334624811,1723361439473,-154.77557542,0.00018799,2]
[334624813,1723361439483,-154.77557542,0.00018799,2]
[334624814,1723361439493,-196.63865106,0.00018799,2]
[334624815,1723361439502,-322.30330829,0.00018799,2]
[334624816,1723361439512,-288.02845211,0.00018799,2]
[334624817,1723361439521,-154.77557542,0.00018799,2]
[334624818,1723361439531,-155.09398798,0.00018799,2]
[334624819,1723361439540,-209.37253615,0.00018799,2]
[334624820,1723361439550,-155.16138549,0.00018799,2]
[334624822,1723361439560,-404.08727484,0.00018825,2]
[334624824,1723361439572,-156.50755959,0.00018825,2]
[334624825,1723361439584,-188.40491976,0.00018825,2]
[334624826,1723361439594,-404.08727484,0.00018825,2]
[334624827,1723361439605,-319.99782942,0.00018825,2]
[334624828,1723361439615,-471.24155498,0.00018825,2]
[334624829,1723361439625,-205.22796673,0.00018825,2]
[334624830,1723361439635,-153.1,0.00018838,2]
[334624831,1723361439644,-339.04568857,0.00018845,2]
[334624832,1723361439654,-414.28019691,0.00018845,2]
[334624835,1723361439666,-358.15823791,0.00018845,2]
[334624837,1723361439676,-154.76012181,0.00018845,2]
[334624839,1723361439685,-70128.8264392,0.00018853,2]
[334624841,1723361439695,-70128.8264392,0.00018853,2]
[334624843,1723361439706,-8125.18369956,0.00018859,2]
[334624845,1723361439716,-248.0,0.00018863,2]
[334624847,1723361439727,-248.0,0.00018863,2]
[334624849,1723361439738,-248.0,0.00018863,2]
[334624851,1723361439747,-248.0,0.00018863,2]
[334624853,1723361439757,-248.0,0.00018863,2]
[334624855,1723361439767,-248.0,0.00018863,2]
[334624858,1723361439780,-248.0,0.00018863,2]
[334624860,1723361439790,-248.0,0.00018863,2]
[334624861,1723361439802,-248.0,0.00018863,2]
[334624863,1723361439812,-248.0,0.00018863,2]
[334624865,1723361439823,-248.0,0.00018863,2]
[334624867,1723361439833,-248.0,0.00018863,2]
[334624869,1723361439844,-248.0,0.00018863,2]
[334624871,1723361439855,-433.0,0.00018863,2]
[334624873,1723361439865,-433.0,0.00018863,2]
[334624875,1723361439876,-433.0,0.00018863,2]
[334624877,1723361439887,-433.0,0.00018863,2]
[334624880,1723361439897,-433.0,0.00018863,2]
[334624882,1723361439908,-433.0,0.00018863,2]
[334624884,1723361439919,-433.0,0.00018863,2]
[334624886,1723361439929,-433.0,0.00018863,2]
[334624888,1723361439939,-433.0,0.00018863,2]
[334624890,1723361439948,-433.0,0.00018863,2]
[334624892,1723361439958,-433.0,0.00018863,2]
[334624894,1723361439969,-433.0,0.00018863,2]
[334624896,1723361439981,-433.0,0.00018863,2]
[334624898,1723361439993,-433.0,0.00018863,2]
[334624900,1723361440005,-433.0,0.00018863,2]
[334624902,1723361440017,-433.0,0.00018863,2]
[334624905,1723361440029,-433.0,0.00018863,2]
[334624907,1723361440040,-248.0,0.00018863,2]
[334624909,1723361440050,-248.0,0.00018863,2]
[334624910,1723361440060,-248.0,0.00018863,2]
[334624913,1723361440071,-248.0,0.00018863,2]
[334624914,1723361440080,-248.0,0.00018863,2]
[334624917,1723361440090,-248.0,0.00018863,2]
[334624919,1723361440100,-248.0,0.00018863,2]
[334624921,1723361440112,-248.0,0.00018863,2]
[334624923,1723361440121,-248.0,0.00018863,2]
[334624925,1723361440131,-248.0,0.00018863,2]
[334624927,1723361440142,-248.0,0.00018863,2]
[334624929,1723361440151,-248.0,0.00018863,2]
[334624931,1723361440162,-248.0,0.00018863,2]
[334624933,1723361440173,-433.0,0.00018863,2]
[334624936,1723361440185,-433.0,0.00018863,2]
[334624938,1723361440195,-433.0,0.00018863,2]
[334624940,1723361440204,-433.0,0.00018863,2]
[334624942,1723361440216,-433.0,0.00018863,2]
[334624944,1723361440226,-433.0,0.00018863,2]
[334624946,1723361440236,-433.0,0.00018863,2]
[334624948,1723361440246,-433.0,0.00018863,2]
[334624950,1723361440256,-433.0,0.00018863,2]
[334624952,1723361440265,-433.0,0.00018863,2]
[334624954,1723361440274,-433.0,0.00018863,2]
[334624956,1723361440285,-433.0,0.00018863,2]
[334624958,1723361440294,-433.0,0.00018863,2]
[334624960,1723361440304,-433.0,0.00018863,2]
[334624962,1723361440314,-433.0,0.00018863,2]
[334624964,1723361440323,-433.0,0.00018863,2]
[334624966,1723361440332,-433.0,0.00018863,2]
[334624968,1723361440342,-248.0,0.00018863,2]
[334624970,1723361440351,-248.0,0.00018863,2]
[334624971,1723361440360,-248.0,0.00018863,2]
[334624972,1723361440369,-248.0,0.00018863,2]
[334624973,1723361440378,-248.0,0.00018863,2]
[334624975,1723361440388,-248.0,0.00018863,2]
[334624977,1723361440397,-248.0,0.00018863,2]
[334624978,1723361440406,-248.0,0.00018863,2]
[334624980,1723361440415,-248.0,0.00018863,2]
[334624982,1723361440425,-248.0,0.00018863,2]
[334624983,1723361440434,-248.0,0.00018863,2]
[334624984,1723361440444,-248.0,0.00018863,2]
[334624985,1723361440453,-433.0,0.00018863,2]
[334624986,1723361440464,-433.0,0.00018863,2]
[334624987,1723361440475,-433.0,0.00018863,2]
[334624988,1723361440485,-433.0,0.00018863,2]
[334624989,1723361440497,-433.0,0.00018863,2]
[334624990,1723361440508,-433.0,0.00018863,2]
[334624991,1723361440518,-433.0,0.00018863,2]
[334624992,1723361440527,-433.0,0.00018863,2]
[334624993,1723361440536,-433.0,0.00018863,2]
[334624994,1723361440546,-433.0,0.00018863,2]
[334624995,1723361440555,-433.0,0.00018863,2]
[334624996,1723361440564,-248.0,0.00018863,2]
[334624997,1723361440574,-248.0,0.00018863,2]
[334624998,1723361440584,-248.0,0.00018863,2]
[334624999,1723361440594,-248.0,0.00018863,2]
[334625000,1723361440603,-248.0,0.00018863,2]
[334625001,1723361440613,-248.0,0.00018863,2]
[334625002,1723361440622,-248.0,0.00018863,2]
[334625003,1723361440631,-248.0,0.00018863,2]
[334625004,1723361440641,-248.0,0.00018863,2]
[334625005,1723361440650,-248.0,0.00018863,2]
[334625006,1723361440659,-248.0,0.00018863,2]
[334625007,1723361440668,-248.0,0.00018863,2]
[334625008,1723361440677,-248.0,0.00018863,2]
[334625009,1723361440686,-433.0,0.00018863,2]
[334625010,1723361440695,-433.0,0.00018863,2]
[334625011,1723361440704,-433.0,0.00018863,2]
[334625012,1723361440713,-433.0,0.00018863,2]
[334625013,1723361440723,-433.0,0.00018863,2]
[334625014,1723361440732,-433.0,0.00018863,2]
[334625015,1723361440742,-433.0,0.00018863,2]
[334625016,1723361440751,-433.0,0.00018863,2]
[334625017,1723361440761,-433.0,0.00018863,2]
[334625018,1723361440772,-433.0,0.00018863,2]
[334625019,1723361440783,-433.0,0.00018863,2]
[334625020,1723361440794,-433.0,0.00018863,2]
[334625021,1723361440805,-198.0,0.00018863,2]
[334625022,1723361440814,-198.0,0.00018863,2]
[334625023,1723361440823,-203.0,0.00018863,2]
[334625024,1723361440835,-203.0,0.00018863,2]
[334625025,1723361440844,-203.0,0.00018863,2]
[334625026,1723361440853,-203.0,0.00018863,2]
[334625027,1723361440862,-203.0,0.00018863,2]
[334625028,1723361440876,-203.0,0.00018863,2]
[334625029,1723361440887,-203.0,0.00018863,2]
[334625030,1723361440898,-203.0,0.00018863,2]
[334625031,1723361440909,-203.0,0.00018863,2]
[334625032,1723361440919,-315.0,0.00018863,2]
[334625033,1723361440929,-315.0,0.00018863,2]
[334625034,1723361440940,-315.0,0.00018863,2]
[334625035,1723361440949,-315.0,0.00018863,2]
[334625036,1723361440961,-315.0,0.00018863,2]
[334625037,1723361440973,-315.0,0.00018863,2]
[334625038,1723361440982,-315.0,0.00018863,2]
[334625039,1723361440993,-315.0,0.00018863,2]
[334625040,1723361441003,-315.0,0.00018863,2]
[334625041,1723361441015,-315.0,0.00018863,2]
[334625042,1723361441025,-315.0,0.00018863,2]
[334625043,1723361441036,-315.0,0.00018863,2]
[334625044,1723361441047,-315.0,0.00018863,2]
[334625045,1723361441057,-315.0,0.00018863,2]
[334625046,1723361441066,-315.0,0.00018863,2]
[334625047,1723361441074,-315.0,0.00018863,2]
[334625048,1723361441083,-245.0,0.00018863,2]
[334625049,1723361441092,-245.0,0.00018863,2]
[334625050,1723361441101,-245.0,0.00018863,2]
[334625051,1723361441110,-245.0,0.00018863,2]
[334625052,1723361441118,-245.0,0.00018863,2]
[334625053,1723361441129,-245.0,0.00018863,2]
[334625054,1723361441139,-245.0,0.00018863,2]
[334625055,1723361441148,-245.0,0.00018863,2]
[334625056,1723361441159,-245.0,0.00018863,2]
[334625057,1723361441170,-245.0,0.00018863,2]
[334625058,1723361441181,-245.0,0.00018863,2]
[334625059,1723361441190,-245.0,0.00018863,2]
[334625060,1723361441199,-245.0,0.00018863,2]
[334625061,1723361441208,-245.0,0.00018863,2]
[334625062,1723361441217,-245.0,0.00018863,2]
[334625063,1723361441226,-245.0,0.00018863,2]
[334625064,1723361441235,-245.0,0.00018863,2]
[334625065,1723361441245,-245.0,0.00018863,2]
[334625066,1723361441255,-245.0,0.00018863,2]
[334625067,1723361441265,-245.0,0.00018863,2]
[334625068,1723361441275,-245.0,0.00018863,2]
[334625069,1723361441285,-245.0,0.00018863,2]
[334625070,1723361441294,-245.0,0.00018863,2]
[334625071,1723361441303,-245.0,0.00018863,2]
[334625072,1723361441312,-245.0,0.00018863,2]
[334625073,1723361441323,-429.0,0.00018863,2]
[334625074,1723361441333,-429.0,0.00018863,2]
[334625075,1723361441343,-429.0,0.00018863,2]
[334625076,1723361441353,-429.0,0.00018863,2]
[334625077,1723361441364,-429.0,0.00018863,2]
[334625078,1723361441373,-429.0,0.00018863,2]
[334625079,1723361441382,-429.0,0.00018863,2]
[334625080,1723361441391,-429.0,0.00018863,2]
[334625081,1723361441400,-429.0,0.00018863,2]
[334625082,1723361441410,-429.0,0.00018863,2]
[334625083,1723361441420,-429.0,0.00018863,2]
[334625084,1723361441430,-429.0,0.00018863,2]
[334625085,1723361441439,-429.0,0.00018863,2]
[334625086,1723361441449,-429.0,0.00018863,2]
[334625087,1723361441458,-429.0,0.00018863,2]
[334625088,1723361441470,-429.0,0.00018863,2]
[334625089,1723361441480,-429.0,0.00018863,2]
[334625090,1723361441490,-70128.8264392,0.0001887,2]
[334625091,1723361441500,-376333.01524153,0.0001888,2]
[334625092,1723361441510,-213.395508,0.0001888,2]
[334625093,1723361441519,-213.395508,0.0001888,2]
[334625094,1723361441530,-220.824392,0.0001888,2]
[334625095,1723361441540,-220.824392,0.0001888,2]
[334625096,1723361441549,-151.0,0.0001888,2]
[334625097,1723361441559,-567.157712,0.0001888,2]
[334625098,1723361441569,-154.76012181,0.00018899,2]
[334625099,1723361441579,-154.76012181,0.00018899,2]
[334625100,1723361441589,-728.15079492,0.00018899,2]
[334625101,1723361441598,-18861.55381406,0.000189,2]
[334625102,1723361441608,-150.0,0.00018902,2]
[334625103,1723361441617,-337.468676,0.00018904,2]
[334625104,1723361441632,-154.76012181,0.0001891,2]
[334625105,1723361441643,-42377.77535747,0.00018969,2]
[334625106,1723361441653,-2126.37973248,0.00018979,2]
[334625107,1723361441664,-156.28091519,0.00019,2]
[334625108,1723361441674,-1000.0,0.00019,19]
[334625109,1723361441685,-153.1,0.00019068,2]
[334625110,1723361441695,-150.112235,0.000191,2]
[334625111,1723361441704,-186.3613724,0.000191,2]
[334625112,1723361441715,-494.6780177,0.00019102,2]
[334625113,1723361441725,-157.95166393,0.00019153,2]
[334625114,1723361441735,-1606.13712553,0.00019167,2]
[334625123,1723361442726,-7824.71547966,0.00019167,2]
[334625124,1723361442736,-14251.4449406,0.00019167,2]
[334625125,1723361442749,-523.0,0.00019169,2]
[334625126,1723361442759,-9648.27796999,0.00019177,2]
[334625127,1723361442769,-500.0,0.00019178,2]
[334625128,1723361442778,-500.0,0.00019178,2]
[334625129,1723361442788,-500.0,0.00019178,2]
[334625130,1723361442802,-500.0,0.00019178,2]
[334625131,1723361442811,-500.0,0.00019178,2]
[334625132,1723361442820,-500.0,0.00019178,2]
[334625133,1723361442830,-500.0,0.00019178,2]
[334625134,1723361442840,-500.0,0.00019178,2]
[334625135,1723361442849,-500.0,0.00019178,2]
[334625136,1723361442859,-191.02597789,0.00019178,2]
[334625137,1723361442869,-500.0,0.00019178,2]
[334625138,1723361442879,-500.0,0.00019178,2]
[334625139,1723361442889,-500.0,0.00019178,2]
[334625140,1723361442898,-500.0,0.00019178,2]
[334625141,1723361442908,-500.0,0.00019178,2]
[334625142,1723361442918,-500.0,0.00019178,2]
[334625143,1723361442927,-500.0,0.00019178,2]
[334625144,1723361442936,-168.2800488,0.00019178,2]
[334625145,1723361442946,-168.280037,0.00019178,2]
[334625146,1723361442955,-167.954948,0.00019178,2]
[334625147,1723361442965,-153.1,0.00019298,2]
[334625148,1723361442974,-500.0,0.00019351,2]
[334625149,1723361442984,-587.0,0.00019405,2]
[334625150,1723361442996,-809.06263735,0.00019477,2]
[334625151,1723361443006,-189.50767068,0.00019477,2]
[334625152,1723361443015,-153.1,0.00019528,2]
[334625153,1723361443025,-194.74416001,0.00019547,2]
[334625154,1723361443034,-156.82503371,0.00019547,2]
[334625155,1723361443044,-20777.37607493,0.00019547,2]
[334625156,1723361443053,-178.612123,0.00019743,2]
[334625157,1723361443062,-163.530399,0.00019743,2]
[334625158,1723361443071,-178.593803,0.00019743,2]
[334625159,1723361443081,-157.895547,0.00019743,2]
[334625160,1723361443091,-220.78017,0.00019743,2]
[334625161,1723361443100,-160.575815,0.00019743,2]
[334625162,1723361443110,-164.967543,0.00019743,2]
[334625163,1723361443120,-166.475249,0.00019743,2]
[334625164,1723361443129,-181.878625,0.00019743,2]
[334625165,1723361443139,-153.1,0.00019758,2]
[334625166,1723361443149,-200.0,0.00019773,2]
[334625167,1723361443158,-170.0,0.00019773,2]
[334625168,1723361443168,-200.0,0.00019773,2]
[334625169,1723361443177,-12882.44032894,0.000198,11]
[334625171,1723361443187,-150.112233,0.000198,2]
[334625173,1723361443197,-65499.09369363,0.000198,2]
[334625175,1723361443209,-2887.83715123,0.000198,2]
[334625177,1723361443225,-2001.64,0.000198,2]
[334625180,1723361443526,-154.78325886,0.00018786,2]
[334625181,1723361443535,-567.157712,0.0001888,2]
[334625182,1723361443545,-58.17902914,0.000198,2]
[334625183,1723361444066,-428961.03393423,0.000198,2]
[334625184,1723361444078,-151.295224,0.000198,2]
[334625185,1723361444089,-151.295224,0.000198,2]
[334625186,1723361444100,-153.124255,0.000198,2]
[334625187,1723361444111,-258.534774,0.000198,2]
[334625188,1723361444122,-228.648853,0.000198,2]
[334625189,1723361444133,-258.534774,0.000198,2]
[334625190,1723361444142,-228.648853,0.000198,2]
[334625191,1723361444152,-501.850638,0.000198,2]
[334625192,1723361444161,-501.850638,0.000198,2]
[334625193,1723361444171,-151.0,0.000198,2]
[334625194,1723361444181,-151.0,0.000198,2]
[334625195,1723361444191,-925.214648,0.000198,2]
[334625196,1723361444200,-925.214648,0.000198,2]
[334625197,1723361444210,-213.395508,0.000198,2]
[334625198,1723361444219,-213.395508,0.000198,2]
[334625199,1723361444230,-220.824392,0.000198,2]
[334625200,1723361444240,-220.824392,0.000198,2]
[334625201,1723361444249,-151.0,0.000198,2]
[334625202,1723361444259,-567.157712,0.000198,2]
[334625203,1723361444268,-567.157712,0.000198,2]
[334625204,1723361444278,-153.1,0.00019989,2]
[334625205,1723361444289,-151.0,0.00019989,2]
[334625206,1723361444299,-35243.40148751,0.0001999,2]
[334625207,1723361444309,-156.5036659,0.0002,2]
[334625208,1723361444321,-154.76012181,0.0002,2]
[334625209,1723361444332,-427.42147881,0.0002,2]
[334625210,1723361444342,-294.37791673,0.0002,2]
[334625211,1723361444351,-337.57235764,0.0002,2]
[334625212,1723361444362,-222.78569548,0.0002,2]